[Event "WYCC 2018 G16"]
[Site "Halkidiki"]
[Date "2018.10.21"]
[Round "3"]
[White "Cervantes Landeiro, Thalia"]
[Black "Ortega Beltran, Ximena"]
[Result "1-0"]
[ECO "A43"]
[WhiteElo "2129"]
[BlackElo "1628"]
[Annotator "NA"]
[PlyCount "105"]
[EventDate "2018.10.20"]
[EventType "swiss"]
[EventCountry "GRE"]
[SourceTitle "playchess.com"]
[Source "ChessBase"]
[SourceQuality "1"]
[TimeControl "40/5400+30:1800+30"]

1. d4 {[%emt 0:00:00]} c5 {[%emt 0:00:00]} 2. d5 {[%emt 0:00:00]} d6 {[%emt 0:00:00]} 3. c4 {[%emt 0:00:00]} Nf6 {[%emt 0:00:07]} 4. Nc3 {[%emt 0:00:00]} g6 {[%emt 0:00:22]} 5. e4 {[%emt 0:00:00]} Bg7 {[%emt 0:00:17]} 6. f4 {[%emt 0:00:21]} a6 {[%emt 0:01:35]} 7. Nf3 {[%emt 0:00:23]} Bg4 {[%emt 0:00:56]} 8. Bd3 {[%emt 0:00:19]} Nbd7 {[%emt 0:02:00]} 9. O-O {[%emt 0:00:35]} O-O {[%emt 0:00:19]} 10. h3 {[%emt 0:02:25]} Bxf3 {[%emt 0:00:32]} 11. Qxf3 {[%emt 0:00:11]} Rb8 {[%emt 0:01:06] E76: King's Indian: Four Pawns Attack: Lines specific to 6 Nf3 move-order} 12. a4 {[%emt 0:02:07]} b6 {[%emt 0:01:33]} 13. Kh1 $146 {[%emt 0:00:28]} ({Predecessor:} 13. Bd2 Ne8 14. Rae1 {1-0 (32) Savchenko,S (2525)-Pira,D (2395) France 2007}) 13... Ne8 {[%emt 0:07:54]} 14. Be3 {[%emt 0:02:02]} Nc7 {[%emt 0:00:48]} 15. Bf2 {[%emt 0:02:06]} e6 {[%emt 0:01:53]} 16. Bg3 {[%emt 0:03:00]} exd5 {[%emt 0:03:16]} 17. exd5 {[%emt 0:02:58]} f5 {[%emt 0:01:30]} 18. Rfe1 {[%emt 0:03:47]} Re8 {[%emt 0:01:17]} 19. Qf2 {[%emt 0:02:25]} Qf6 {[%emt 0:03:01]} 20. Bh4 {[%emt 0:03:16]} Qf7 {[%emt 0:08:10]} 21. Qd2 {[%emt 0:02:44]} Nf6 {[%emt 0:01:11]} 22. Rxe8+ {[%emt 0:10:06]} Rxe8 {[%emt 0:00:10]} 23. Qc2 {[%emt 0:07:46]} Ne4 {[%emt 0:12:33]} 24. Qb3 {[%emt 0:11:11]} Nxc3 {[%emt 0:03:44]} 25. bxc3 {[%emt 0:00:36]} Re3 {[%emt 0:00:17]} 26. Rd1 {[%emt 0:01:05]} Na8 {[%emt 0:04:58]} 27. Bf2 {[%emt 0:05:30]} Re8 {[%emt 0:01:13]} 28. Ra1 {[%emt 0:05:57]} Qf6 {[%emt 0:03:56]} 29. Ra3 {[%emt 0:01:47]} a5 {[%emt 0:07:14]} 30. Qb5 {[%emt 0:01:14]} Qf7 {[%emt 0:02:27]} 31. Qc6 {[%emt 0:01:23]} Rd8 {[%emt 0:01:16]} 32. Rb3 {[%emt 0:13:23]} Qe8 {[%emt 0:01:12]} 33. Qb5 {[%emt 0:01:21]} Qxb5 {[%emt 0:00:31]} 34. cxb5 {[%emt 0:00:04]} Nc7 {[%emt 0:04:57]} 35. c4 {[%emt 0:01:00]} Re8 {[%emt 0:00:32]} 36. Rb1 {[%emt 0:01:28]} Bc3 {[%emt 0:07:03]} 37. Kh2 {[%emt 0:02:48]} Kf7 {[%emt 0:00:15]} 38. g4 {[%emt 0:01:19]} fxg4 {[%emt 0:01:05]} 39. hxg4 {[%emt 0:00:03]} Re7 {[%emt 0:01:16]} 40. Kg3 {[%emt 0:00:00]} Ne8 {[%emt 0:00:00]} 41. Kf3 {[%emt 0:07:51]} Nf6 {[%emt 0:07:50]} 42. g5 {[%emt 0:11:07]} Nh5 {[%emt 0:01:37]} 43. f5 {[%emt 0:05:12]} Bd2 {[%emt 0:01:55]} 44. Kg4 {[%emt 0:01:24]} Nf4 {[%emt 0:04:26]} 45. Bc2 {[%emt 0:04:42]} gxf5+ {[%emt 0:24:36]} 46. Bxf5 {[%emt 0:01:06]} Ng6 {[%emt 0:01:31]} 47. Be6+ {[%emt 0:01:17]} Kg7 $2 {[%emt 0:00:32]} (47... Ke8 {was necessary.}) 48. Bg3 {[%emt 0:03:37]} Ne5+ $18 {[%emt 0:02:51]} 49. Bxe5+ {[%emt 0:00:16]} dxe5 {[%emt 0:00:05]} 50. Rd1 {[%emt 0:00:43]} Bc3 {[%emt 0:03:44]} 51. d6 {[%emt 0:01:05]} Re8 {[%emt 0:00:06]} 52. d7 {[%emt 0:00:20]} Rd8 {[%emt 0:00:08]} 53. Rd6 {[%emt 0:00:21]} 1-0

[Event "WYCC 2018 G16"]
[Site "Halkidiki"]
[Date "2018.10.21"]
[Round "3"]
[White "Schulze, Lara"]
[Black "Solozhenkina, Elizaveta"]
[Result "0-1"]
[ECO "B90"]
[WhiteElo "2122"]
[BlackElo "2276"]
[Annotator "NA"]
[PlyCount "80"]
[EventDate "2018.10.20"]
[EventType "swiss"]
[EventCountry "GRE"]
[SourceTitle "playchess.com"]
[Source "ChessBase"]
[SourceQuality "1"]
[TimeControl "40/5400+30:1800+30"]

1. e4 {[%emt 0:00:00]} c5 {[%emt 0:00:00]} 2. Nf3 {[%emt 0:00:00]} d6 {[%emt 0:00:00]} 3. d4 {[%emt 0:00:00]} cxd4 {[%emt 0:00:00]} 4. Nxd4 {[%emt 0:00:00]} Nf6 {[%emt 0:00:00]} 5. Nc3 {[%emt 0:00:00]} a6 {[%emt 0:00:06]} 6. h3 {[%emt 0:00:00]} e5 {[%emt 0:00:15]} 7. Nde2 {[%emt 0:00:01]} b5 {[%emt 0:00:13]} 8. g4 {[%emt 0:00:16]} b4 {[%emt 0:00:33]} 9. Nd5 {[%emt 0:00:06]} Nxd5 {[%emt 0:00:12]} 10. Qxd5 {[%emt 0:00:06]} Ra7 {[%emt 0:00:08]} 11. Be3 {[%emt 0:00:07]} Be6 {[%emt 0:00:36]} 12. Qd3 {[%emt 0:00:08]} Rd7 {[%emt 0:03:05]} 13. c4 {[%emt 0:09:29]} bxc3 {[%emt 0:06:05]} 14. Nxc3 {[%emt 0:00:18]} h5 {[%emt 0:30:39]} 15. gxh5 {[%emt 0:13:18]} d5 {[%emt 0:03:30]} 16. exd5 {[%emt 0:03:28]} Bb4 {[%emt 0:09:37]} 17. h6 {[%emt 0:14:38]} g6 {[%emt 0:13:50]} 18. Qe4 {[%emt 0:13:25]} Bxc3+ {[%emt 0:03:38]} 19. bxc3 {[%emt 0:00:07]} Rxd5 {[%emt 0:00:26]} 20. Bc4 {[%emt 0:03:49]} Nc6 {[%emt 0:03:12]} 21. O-O {[%emt 0:03:14]} Rd6 {[%emt 0:08:41]} 22. Bxe6 {[%emt 0:13:14]} Rxe6 {[%emt 0:00:07]} 23. Rad1 {[%emt 0:06:40]} Qe7 {[%emt 0:02:57]} 24. Rd5 {[%emt 0:01:54]} f5 {[%emt 0:04:15]} 25. Qg2 {[%emt 0:00:29]} f4 {[%emt 0:05:32]} 26. Bc5 {[%emt 0:00:14]} Qf6 {[%emt 0:00:27]} 27. Rfd1 {[%emt 0:03:55]} e4 {[%emt 0:02:34]} 28. Rd6 {[%emt 0:09:38]} Ne7 {[%emt 0:00:44]} 29. Qxe4 {[%emt 0:05:08]} Rxd6 {[%emt 0:01:36]} 30. Bxd6 {[%emt 0:00:25]} Rxh6 {[%emt 0:00:32]} 31. Bxe7 {[%emt 0:00:43]} Qxe7 {[%emt 0:00:04]} 32. Qxf4 {[%emt 0:00:37]} Rxh3 {[%emt 0:01:04]} 33. Qg4 {[%emt 0:00:30]} Rxc3 {[%emt 0:00:34]} 34. Qxg6+ {[%emt 0:00:24]} Kf8 {[%emt 0:00:00]} 35. Rd6 Rc1+ {[%emt 0:01:07]} 36. Kg2 {[%emt 0:00:44]} Qb7+ {[%emt 0:00:08]} 37. f3 {[%emt 0:00:46]} Qb2+ {[%emt 0:00:11]} 38. Kg3 {[%emt 0:00:31]} Rg1+ {[%emt 0:00:08]} 39. Kf4 {[%emt 0:00:05]} Qh2+ {[%emt 0:00:59]} 40. Ke3 {[%emt 0:00:00]} Rxg6 {[%emt 0:00:00]} 0-1

[Event "WYCC 2018 G16"]
[Site "Halkidiki"]
[Date "2018.10.21"]
[Round "3"]
[White "Grigorieva, Yulia"]
[Black "Beydullayeva, Govhar"]
[Result "0-1"]
[ECO "E46"]
[WhiteElo "2112"]
[BlackElo "2202"]
[Annotator "NA"]
[PlyCount "110"]
[EventDate "2018.10.20"]
[EventType "swiss"]
[EventCountry "GRE"]
[SourceTitle "playchess.com"]
[Source "ChessBase"]
[SourceQuality "1"]
[TimeControl "40/5400+30:1800+30"]

1. d4 {[%emt 0:00:00] Stohl,I} e6 {[%emt 0:00:00]} 2. c4 {[%emt 0:01:00]} Nf6 {[%emt 0:00:00]} 3. Nc3 {[%emt 0:01:13]} Bb4 {[%emt 0:00:00]} 4. e3 {[%emt 0:00:40]} O-O {[%emt 0:01:08]} 5. Nge2 {[%emt 0:00:59]} d5 {[%emt 0:02:42]} 6. a3 {[%emt 0:00:52]} Be7 {[%emt 0:10:04]} 7. cxd5 {[%emt 0:00:29]} exd5 {[%emt 0:00:38]} 8. Nf4 {[%emt 0:01:04]} a5 {[%emt 0:07:56] E46: Nimzo-Indian: Rubinstein: 4 e3 0-0 5 Ne2 without early Bd3} (8... c6 9. Bd3 Na6 10. O-O Nc7 11. f3 Re8 12. Bd2 Bf8 13. Qe1 g6 14. g4 c5 15. Qf2 b6 16. h4 Bd6 17. Nce2 {0-1 (54) Caruana,F (2816)-Karjakin,S (2782) Leuven 2018}) 9. Bd3 {[%emt 0:04:03]} b6 $146 {[%emt 0:05:10]} ({Predecessor:} 9... c6 10. O-O Na6 11. f3 Nc7 12. Bd2 c5 13. dxc5 Bxc5 14. Kh1 Ne6 15. e4 dxe4 16. Nxe4 Bd4 17. Qc2 h6 {1-0 (42) So,W (2706)-Van Wely,L (2693) Hoogeveen 2013 CBM 157 [Stohl,I]}) 10. O-O {[%emt 0:02:26]} Bb7 {[%emt 0:00:15]} 11. Bc2 {[%emt 0:12:24]} Re8 {[%emt 0:08:02]} 12. f3 {[%emt 0:09:54]} c5 {[%emt 0:04:37]} 13. Ba4 {[%emt 0:08:42]} Rf8 14. Kh1 {[%emt 0:03:14]} Na6 {[%emt 0:04:51]} 15. Qb3 {[%emt 0:10:48]} c4 {[%emt 0:11:39]} 16. Qd1 {[%emt 0:03:14]} Bd6 {[%emt 0:07:48]} 17. Nfe2 {[%emt 0:04:47]} Nh5 {[%emt 0:04:43]} 18. Qe1 {[%emt 0:04:59]} f5 {[%emt 0:01:15]} 19. f4 {[%emt 0:06:43]} Nf6 {[%emt 0:03:44]} 20. Ng1 {[%emt 0:02:14]} Nc7 {[%emt 0:01:42]} 21. Nf3 {[%emt 0:03:44]} Ba6 {[%emt 0:03:51]} 22. Bc2 {[%emt 0:01:47]} Ne4 {[%emt 0:01:45]} 23. Ne5 {[%emt 0:02:17]} Qe8 {[%emt 0:10:27]} 24. Nxe4 {[%emt 0:08:20]} fxe4 {[%emt 0:03:29]} 25. Rg1 {[%emt 0:02:04]} Bb7 {[%emt 0:01:42]} 26. Bd2 {[%emt 0:00:57]} Ne6 {[%emt 0:03:31]} 27. Bc3 {[%emt 0:02:39]} Qd8 {[%emt 0:00:48]} 28. g4 {[%emt 0:01:41]} Bxe5 {[%emt 0:00:35]} 29. dxe5 {[%emt 0:00:21]} d4 {[%emt 0:00:38]} 30. Rd1 {[%emt 0:00:39]} d3 {[%emt 0:00:45]} 31. h3 Qe7 {[%emt 0:00:54]} 32. Bb1 {[%emt 0:01:04]} Bd5 {[%emt 0:00:37]} 33. Kh2 {[%emt 0:00:20]} Qc7 {[%emt 0:00:20]} 34. Qg3 {[%emt 0:00:40]} b5 {[%emt 0:00:27]} 35. h4 {[%emt 0:00:20]} Rab8 {[%emt 0:00:40]} 36. Qe1 {[%emt 0:00:35]} Ra8 {[%emt 0:00:24]} 37. Qg3 {[%emt 0:00:37]} Nd8 {[%emt 0:00:22]} 38. f5 {[%emt 0:00:30]} Nc6 {[%emt 0:00:10]} 39. e6 {[%emt 0:00:34]} Qxg3+ {[%emt 0:00:07]} 40. Kxg3 {[%emt 0:00:00]} b4 {[%emt 0:00:00]} 41. Bxg7 {[%emt 0:15:14]} Kxg7 {[%emt 0:00:36]} 42. Ba2 {[%emt 0:04:32]} Ne5 {[%emt 0:06:15]} 43. Kf4 {[%emt 0:03:45]} Nf3 {[%emt 0:02:35]} 44. Rh1 {[%emt 0:00:46]} b3 {[%emt 0:01:43]} 45. Bb1 {[%emt 0:01:27]} Rae8 {[%emt 0:00:15]} 46. Kg3 {[%emt 0:00:41]} h5 {[%emt 0:00:13]} 47. Rh3 {[%emt 0:01:48]} Kf6 {[%emt 0:00:20]} 48. Kf4 {[%emt 0:00:42]} hxg4 {[%emt 0:00:18]} 49. Rxf3 {[%emt 0:01:35]} gxf3 {[%emt 0:00:13]} 50. h5 {[%emt 0:00:35]} Rh8 {[%emt 0:00:47]} 51. Rh1 {[%emt 0:00:49]} Reg8 $19 {[%emt 0:00:38]} (51... f2 $142 52. Bxd3 cxd3 53. Kg3 {[#]} Rxh5 $1 {[%mdl 512]} 54. Rxh5 f1=Q 55. Rh6+ Kxf5 56. Rh5+ Kg6 57. Rh4 Qg1+ 58. Kh3 Bxe6+ 59. Rg4+ Bxg4+ 60. Kh4 Rh8#) 52. h6 {[%emt 0:00:24]} Rg5 {[%emt 0:00:12]} 53. Bxd3 {[%emt 0:00:20]} cxd3 {[%emt 0:00:08]} 54. a4 {[%emt 0:00:08]} Rxf5+ {[%emt 0:00:05]} 55. Kg3 {[%emt 0:00:10]} f2 {[%emt 0:00:03]} 0-1

[Event "WYCC 2018 G16"]
[Site "Halkidiki"]
[Date "2018.10.21"]
[Round "3"]
[White "Bulatova, Kamaliya"]
[Black "Kvendseth, Thyra"]
[Result "1-0"]
[ECO "E73"]
[WhiteElo "2108"]
[BlackElo "1854"]
[Annotator "NA"]
[PlyCount "61"]
[EventDate "2018.10.20"]
[EventType "swiss"]
[EventCountry "GRE"]
[SourceTitle "playchess.com"]
[Source "ChessBase"]
[SourceQuality "1"]
[TimeControl "40/5400+30:1800+30"]

1. d4 {[%emt 0:00:00]} Nf6 {[%emt 0:00:00]} 2. c4 {[%emt 0:00:00]} g6 {[%emt 0:00:00]} 3. Nc3 {[%emt 0:00:00]} Bg7 {[%emt 0:00:00]} 4. e4 {[%emt 0:00:00]} d6 {[%emt 0:00:00]} 5. Be2 {[%emt 0:00:00]} O-O {[%emt 0:00:00]} 6. Be3 {[%emt 0:00:00]} c6 {[%emt 0:00:58]} 7. Nf3 {[%emt 0:01:22]} a6 {[%emt 0:02:45]} 8. a4 {[%emt 0:03:05]} a5 {[%emt 0:01:15]} 9. Qd2 {[%emt 0:00:39]} Na6 {[%emt 0:01:56]} 10. Bh6 {[%emt 0:05:07]} Qc7 {[%emt 0:04:41]} 11. h4 {[%emt 0:08:54]} Bxh6 {[%emt 0:05:30]} 12. Qxh6 {[%emt 0:00:05]} Ng4 {[%emt 0:00:08]} 13. Qg5 {[%emt 0:04:15]} h6 {[%emt 0:04:13]} 14. Qf4 {[%emt 0:02:46]} e5 {[%emt 0:04:26]} 15. Qd2 {[%emt 0:04:41]} h5 {[%emt 0:05:13]} 16. Ng5 {[%emt 0:13:47]} Nf6 {[%emt 0:05:49]} 17. f4 {[%emt 0:02:50]} Nb4 {[%emt 0:05:22]} 18. O-O {[%emt 0:06:56]} Kg7 {[%emt 0:03:13]} 19. Rad1 {[%emt 0:10:41]} Bg4 {[%emt 0:02:00]} 20. f5 {[%emt 0:03:54]} exd4 {[%emt 0:11:44]} 21. Qxd4 {[%emt 0:01:49]} Bxe2 {[%emt 0:02:20]} 22. Nxe2 {[%emt 0:00:30]} Rae8 {[%emt 0:02:10]} 23. Nf4 {[%emt 0:03:57]} c5 {[%emt 0:03:16]} 24. Qc3 {[%emt 0:03:00]} Qd7 {[%emt 0:03:00]} 25. Qg3 {[%emt 0:06:44]} Ng4 {[%emt 0:03:16]} 26. Rxd6 {[%emt 0:01:04]} Qe7 {[%emt 0:04:59]} 27. fxg6 {[%emt 0:02:08]} f6 {[%emt 0:01:05]} 28. Nxh5+ {[%emt 0:01:31]} Kxg6 {[%emt 0:02:01]} 29. Qxg4 {[%emt 0:00:55]} Qxd6 {[%emt 0:01:18]} 30. Qf5+ {[%emt 0:00:35]} Kxh5 {[%emt 0:01:05]} 31. Nf7+ {[%emt 0:00:06]} 1-0

[Event "WYCC 2018 G16"]
[Site "Halkidiki"]
[Date "2018.10.21"]
[Round "3"]
[White "Salonika, Saina"]
[Black "Getman, Tatyana"]
[Result "1-0"]
[ECO "B23"]
[WhiteElo "2093"]
[BlackElo "2195"]
[Annotator "NA"]
[PlyCount "41"]
[EventDate "2018.10.20"]
[EventType "swiss"]
[EventCountry "GRE"]
[SourceTitle "playchess.com"]
[Source "ChessBase"]
[SourceQuality "1"]
[TimeControl "40/5400+30:1800+30"]

1. e4 {[%emt 0:00:00]} c5 {[%emt 0:00:00]} 2. Nc3 {[%emt 0:00:00]} d6 {[%emt 0:00:00]} 3. f4 {[%emt 0:00:16]} g6 {[%emt 0:00:00]} 4. Nf3 {[%emt 0:00:04]} Bg7 {[%emt 0:00:00]} 5. Bc4 {[%emt 0:00:15]} Nc6 {[%emt 0:00:01]} 6. d3 {[%emt 0:00:10]} e6 {[%emt 0:00:05]} 7. O-O {[%emt 0:00:10]} Nge7 {[%emt 0:00:06]} 8. Qe1 {[%emt 0:02:22]} O-O {[%emt 0:00:11]} 9. Bb3 {[%emt 0:01:38]} Na5 {[%emt 0:00:38]} 10. Qh4 {[%emt 0:07:09]} d5 {[%emt 0:03:14]} 11. f5 {[%emt 0:03:17]} gxf5 {[%emt 0:02:06]} 12. Bh6 {[%emt 0:04:47]} f6 {[%emt 0:12:19]} 13. Qg3 {[%emt 0:04:12]} Rf7 {[%emt 0:04:38]} 14. exd5 $14 {[%emt 0:01:09]} exd5 {[%emt 0:01:02]} 15. Nh4 {[%emt 0:16:09]} Kh8 {[%emt 0:07:06]} 16. Bf4 {[%emt 0:00:54]} Nxb3 {[%emt 0:02:27]} 17. axb3 {[%emt 0:00:11]} d4 {[%emt 0:03:29]} 18. Nb5 {[%emt 0:01:34]} Nd5 {[%emt 0:07:32]} 19. Nd6 {[%emt 0:02:10]} Rf8 {[%emt 0:03:07]} 20. Ndxf5 {[%emt 0:03:12]} Rg8 {[%emt 0:02:32]} 21. Ng6+ {[%emt 0:00:30]} 1-0

[Event "WYCC 2018 G16"]
[Site "Halkidiki"]
[Date "2018.10.21"]
[Round "3"]
[White "Urh, Zala"]
[Black "Hoesley, Aria"]
[Result "1-0"]
[ECO "A96"]
[WhiteElo "2066"]
[BlackElo "1831"]
[Annotator "NA"]
[PlyCount "97"]
[EventDate "2018.10.20"]
[EventType "swiss"]
[EventCountry "GRE"]
[SourceTitle "playchess.com"]
[Source "ChessBase"]
[SourceQuality "1"]
[TimeControl "40/5400+30:1800+30"]

1. Nf3 {[%emt 0:00:00]} f5 {[%emt 0:00:00]} 2. d4 {[%emt 0:00:41]} Nf6 {[%emt 0:00:01]} 3. g3 {[%emt 0:01:33]} e6 {[%emt 0:00:24]} 4. Bg2 {[%emt 0:00:24]} Be7 {[%emt 0:01:20]} 5. O-O {[%emt 0:00:23]} O-O {[%emt 0:00:15]} 6. c4 {[%emt 0:00:56]} d6 {[%emt 0:00:47]} 7. b3 {[%emt 0:01:43]} Qe8 {[%emt 0:03:21]} 8. Bb2 {[%emt 0:01:16]} a5 {[%emt 0:02:08]} 9. Nbd2 {[%emt 0:03:48]} c6 {[%emt 0:04:23] A96: Classical Dutch: Fluid Systems: Early deviations} 10. Qc2 {[%emt 0:02:13]} d5 $146 {[%emt 0:00:45]} ({Predecessor:} 10... Na6 11. a3 Rb8 12. Bc3 Bd8 13. e4 fxe4 14. Nxe4 Nxe4 15. Qxe4 b5 16. Bd2 {1-0 (54) Sutter,O (2355)-Sadeghi,H (2220) Biel 1997}) 11. Ne5 {[%emt 0:03:33]} Nbd7 {[%emt 0:02:11]} 12. Nd3 {[%emt 0:04:09]} Bd6 {[%emt 0:03:49]} 13. f3 {[%emt 0:03:44]} e5 {[%emt 0:07:55]} 14. e4 {[%emt 0:02:59]} dxe4 {[%emt 0:04:54]} 15. fxe4 {[%emt 0:00:30]} Ng4 {[%emt 0:03:06]} 16. Rae1 {[%emt 0:09:22]} exd4 {[%emt 0:03:29]} 17. Bxd4 {[%emt 0:04:01]} Qh5 {[%emt 0:02:24]} 18. Nf3 {[%emt 0:01:42]} Nxh2 {[%emt 0:13:31]} 19. Nxh2 {[%emt 0:03:23]} Bxg3 {[%emt 0:00:25]} 20. Bf3 {[%emt 0:03:13]} Qg6 {[%emt 0:00:48]} 21. Qg2 {[%emt 0:08:32]} Qd6 {[%emt 0:02:48]} 22. Bxg7 {[%emt 0:03:59]} Kxg7 {[%emt 0:05:49]} 23. e5 {[%emt 0:04:22]} Qg6 {[%emt 0:11:08]} 24. Re2 {[%emt 0:04:05]} Re8 {[%emt 0:04:24]} 25. Bh5 {[%emt 0:03:00]} Qxh5 {[%emt 0:04:11]} 26. Qxg3+ {[%emt 0:00:10]} Qg6 {[%emt 0:00:43]} 27. Rg2 {[%emt 0:02:35]} Qxg3 {[%emt 0:02:10]} 28. Rxg3+ {[%emt 0:00:01]} Kh8 {[%emt 0:00:26]} 29. Rxf5 {[%emt 0:01:28]} Nc5 {[%emt 0:02:23]} 30. Rf7 {[%emt 0:05:54]} Rg8 {[%emt 0:05:14]} 31. Rxg8+ {[%emt 0:04:57]} Kxg8 {[%emt 0:00:01]} 32. Rf3 {[%emt 0:00:01]} Nxd3 {[%emt 0:00:58]} 33. Rxd3 {[%emt 0:00:01]} Bf5 {[%emt 0:00:19]} 34. Re3 {[%emt 0:03:47]} Rd8 {[%emt 0:03:22]} 35. Nf3 {[%emt 0:01:07]} Rd3 {[%emt 0:01:14]} 36. Kf2 {[%emt 0:01:59]} Rxe3 {[%emt 0:00:21]} 37. Kxe3 {[%emt 0:00:01]} c5 {[%emt 0:02:48]} 38. Kf4 {[%emt 0:06:07]} Bd7 {[%emt 0:03:16]} 39. Ng5 {[%emt 0:02:02]} b6 {[%emt 0:00:46]} 40. e6 {[%emt 0:00:00]} Bc6 {[%emt 0:00:00]} 41. Ke5 {[%emt 0:07:04]} Be8 {[%emt 0:06:50]} 42. Kf6 {[%emt 0:11:09]} h5 {[%emt 0:04:34]} 43. Nf3 {[%emt 0:05:12]} Kf8 {[%emt 0:02:26]} 44. Nh4 {[%emt 0:01:13]} b5 {[%emt 0:01:44]} 45. Nf5 {[%emt 0:01:23]} a4 {[%emt 0:00:54]} 46. e7+ {[%emt 0:03:41]} Kg8 {[%emt 0:00:08]} 47. Nd6 {[%emt 0:00:17]} axb3 {[%emt 0:01:33]} 48. Nxe8 {[%emt 0:04:00]} bxa2 $18 {[%emt 0:00:26]} 49. Kg6 {[%emt 0:00:02]} 1-0

[Event "WYCC 2018 G16"]
[Site "Halkidiki"]
[Date "2018.10.21"]
[Round "3"]
[White "Aubert, Estee"]
[Black "Leonova, Ameliya"]
[Result "1-0"]
[ECO "A43"]
[WhiteElo "2064"]
[BlackElo "1736"]
[Annotator "NA"]
[PlyCount "51"]
[EventDate "2018.10.20"]
[EventType "swiss"]
[EventCountry "GRE"]
[SourceTitle "playchess.com"]
[Source "ChessBase"]
[SourceQuality "1"]
[TimeControl "40/5400+30:1800+30"]

1. d4 {[%emt 0:00:00]} c5 {[%emt 0:00:00]} 2. d5 {[%emt 0:00:00]} Nf6 {[%emt 0:00:00]} 3. Nc3 {[%emt 0:00:55]} g6 {[%emt 0:00:00]} 4. e4 {[%emt 0:01:23]} d6 {[%emt 0:00:14]} 5. Bd3 {[%emt 0:18:40]} Bg7 {[%emt 0:00:45]} 6. f4 {[%emt 0:02:28]} O-O {[%emt 0:00:30]} 7. Nf3 {[%emt 0:00:35]} a6 {[%emt 0:01:45]} 8. a4 {[%emt 0:00:37]} b6 {[%emt 0:00:07]} 9. O-O {[%emt 0:00:59]} Bb7 {[%emt 0:12:59]} 10. Qe1 {[%emt 0:10:04]} Nbd7 {[%emt 0:01:12]} 11. b3 {[%emt 0:12:27]} Qc7 {[%emt 0:02:11]} 12. Bb2 {[%emt 0:00:17]} Rfe8 {[%emt 0:22:42]} 13. Bc4 {[%emt 0:08:15]} e6 {[%emt 0:06:25]} 14. Qd1 {[%emt 0:11:50]} exd5 {[%emt 0:14:44]} 15. exd5 {[%emt 0:00:15]} Ne4 {[%emt 0:01:15]} 16. Qd3 {[%emt 0:03:51]} Nxc3 {[%emt 0:02:49]} 17. Bxc3 {[%emt 0:00:18]} Nf6 {[%emt 0:00:42]} 18. f5 {[%emt 0:08:40]} Bc8 {[%emt 0:08:38]} 19. fxg6 {[%emt 0:00:40]} hxg6 {[%emt 0:00:38]} 20. Ng5 {[%emt 0:03:04]} Bf5 {[%emt 0:01:43]} 21. Qd2 {[%emt 0:03:21]} Qd7 {[%emt 0:02:39]} 22. Bd3 {[%emt 0:02:30]} Bxd3 {[%emt 0:04:39]} 23. Qxd3 {[%emt 0:00:03]} Qg4 {[%emt 0:09:09]} 24. Bxf6 {[%emt 0:03:59]} Bxf6 {[%emt 0:00:07]} 25. Rxf6 {[%emt 0:00:08]} Re2 {[%emt 0:04:25]} 26. Rxg6+ {[%emt 0:01:14]} 1-0

[Event "WYCC 2018 G16"]
[Site "Halkidiki"]
[Date "2018.10.21"]
[Round "3"]
[White "Gombocz, Zsofia"]
[Black "Ros Alonso, Joana"]
[Result "1-0"]
[ECO "C06"]
[WhiteElo "2038"]
[BlackElo "1952"]
[Annotator "NA"]
[PlyCount "112"]
[EventDate "2018.10.20"]
[EventType "swiss"]
[EventCountry "GRE"]
[SourceTitle "playchess.com"]
[Source "ChessBase"]
[SourceQuality "1"]
[TimeControl "40/5400+30:1800+30"]

1. e4 {[%emt 0:00:00]} e6 {[%emt 0:00:00]} 2. d4 {[%emt 0:00:00]} d5 {[%emt 0:00:00]} 3. Nd2 {[%emt 0:00:00]} Nf6 {[%emt 0:00:00]} 4. e5 {[%emt 0:00:00]} Nfd7 {[%emt 0:00:00]} 5. Bd3 {[%emt 0:00:12]} c5 {[%emt 0:00:00]} 6. c3 {[%emt 0:00:11]} Nc6 {[%emt 0:00:07]} 7. Ne2 {[%emt 0:00:15]} cxd4 {[%emt 0:00:07]} 8. cxd4 {[%emt 0:00:07]} f6 {[%emt 0:00:07]} 9. exf6 {[%emt 0:00:49]} Nxf6 {[%emt 0:00:08]} 10. Nf3 {[%emt 0:01:00]} Bd6 {[%emt 0:00:08]} 11. O-O {[%emt 0:01:40]} O-O {[%emt 0:00:11]} 12. Bg5 {[%emt 0:05:07]} Qc7 {[%emt 0:00:59]} 13. Ng3 {[%emt 0:05:38]} h6 {[%emt 0:05:31] C06: French Tarrasch: 3...Nf6 4 e5 Nfd7 5 Bd3 main lines} (13... Bd7 14. Rc1 Rae8 15. Bb1 Bf4 16. Bxf4 Qxf4 17. Qd3 g6 18. a3 e5 19. dxe5 Nxe5 20. Nxe5 Rxe5 21. Rcd1 Rfe8 22. Qc3 {½-½ (32) Polgar,J (2709)-Bueno,A (2291) Caxias do Sul 2012}) 14. Bd2 {[%emt 0:01:53]} e5 {[%emt 0:08:54]} 15. dxe5 {[%emt 0:04:20]} Nxe5 {[%emt 0:00:13]} 16. Be2 $146 {[%emt 0:06:27]} ({Predecessor:} 16. Nxe5 Bxe5 17. Bb4 Rd8 18. Rc1 Qf7 19. Qe2 Bf4 20. Rce1 Bg4 21. f3 Re8 22. Qc2 Rxe1 23. Rxe1 Be6 24. Bg6 Qd7 25. Nf5 Bxf5 26. Bxf5 Qb5 27. Be7 Kh8 28. g3 {1-0 (28) Zebisch,P (2172)-Natsidis,C (2183) Leutersdorf 2007}) 16... Bd7 {[%emt 0:06:12]} 17. Qb3 {[%emt 0:05:22]} Bc6 {[%emt 0:06:48]} 18. Nd4 {[%emt 0:02:29]} Qd7 {[%emt 0:10:03]} 19. Bb4 {[%emt 0:10:22]} Bxb4 {[%emt 0:08:19]} 20. Qxb4 {[%emt 0:00:14]} Kh8 {[%emt 0:07:49]} 21. Nxc6 {[%emt 0:08:20]} bxc6 {[%emt 0:00:52]} 22. Rac1 {[%emt 0:02:29]} Rab8 {[%emt 0:04:25]} 23. Qd4 {[%emt 0:02:03]} Rfe8 {[%emt 0:04:36]} 24. Rfe1 {[%emt 0:04:06]} Qb7 {[%emt 0:02:24]} 25. b3 {[%emt 0:03:03]} Ned7 {[%emt 0:07:24]} 26. Bd3 {[%emt 0:05:01]} c5 {[%emt 0:03:56]} 27. Qf4 {[%emt 0:02:33]} Rxe1+ {[%emt 0:06:14]} 28. Rxe1 {[%emt 0:00:10]} Qb4 {[%emt 0:03:47]} 29. Qe3 {[%emt 0:05:13]} c4 {[%emt 0:02:45]} 30. bxc4 {[%emt 0:06:07]} Re8 {[%emt 0:05:59]} 31. Qxe8+ {[%emt 0:02:19]} Nxe8 {[%emt 0:00:10]} 32. Rxe8+ {[%emt 0:00:08]} Nf8 {[%emt 0:00:03]} 33. cxd5 {[%emt 0:02:46]} Kg8 {[%emt 0:00:15]} 34. Bg6 {[%emt 0:02:00]} Qb6 {[%emt 0:00:56]} 35. Bc2 {[%emt 0:03:09]} Kf7 {[%emt 0:02:11]} 36. Re3 {[%emt 0:00:41]} Nd7 {[%emt 0:01:13]} 37. h4 {[%emt 0:01:45]} Nf6 {[%emt 0:02:31]} 38. h5 {[%emt 0:01:11]} Qd4 {[%emt 0:02:06]} 39. Rd3 {[%emt 0:07:12]} Qa1+ {[%emt 0:00:29]} 40. Rd1 {[%emt 0:00:00]} Qxa2 {[%emt 0:00:00]} 41. Bg6+ {[%emt 0:00:49]} Ke7 {[%emt 0:02:54]} 42. Nf5+ {[%emt 0:02:22]} Kd7 {[%emt 0:03:53]} 43. Nxg7 {[%emt 0:03:18]} Qe2 {[%emt 0:04:38]} 44. Ra1 {[%emt 0:05:15]} a5 {[%emt 0:03:19]} 45. Nf5 {[%emt 0:03:41]} Ng4 {[%emt 0:05:17]} 46. Rf1 {[%emt 0:07:28]} Qe5 {[%emt 0:06:06]} 47. Ng3 {[%emt 0:01:54] [#]} Qf4 {[%emt 0:03:42]} (47... Nxf2 $1 $19 {[%mdl 512]} 48. Kxf2 (48. Rxf2 Qxg3) 48... Qf4+ 49. Ke2 Qxg3 50. Rf7+ Kd6) 48. Bf5+ {[%emt 0:02:23]} Kd6 {[%emt 0:01:52]} 49. Ne4+ {[%emt 0:02:05]} Ke5 {[%emt 0:01:34]} ({Don't play} 49... Kxd5 50. Bxg4 Kxe4 51. Ra1 $17) 50. Bxg4 {[%emt 0:01:45]} Qxg4 {[%emt 0:00:08]} 51. f3 {[%emt 0:00:33]} Qxh5 {[%emt 0:01:48]} 52. Ra1 {[%emt 0:01:18]} Qh4 {[%emt 0:00:51]} 53. d6 {[%emt 0:00:36]} Qd8 {[%emt 0:01:01]} 54. d7 {[%emt 0:01:12]} Qxd7 {[%emt 0:00:37]} 55. Rxa5+ {[%emt 0:00:13]} Kf4 {[%emt 0:00:28]} 56. Rh5 {[%emt 0:01:00]} Qc6 $11 {[%emt 0:00:56]} 1-0